fUSD/lending_fUSD_20240519
["ID","MTS","AMOUNT","RATE_DAILY","PERIOD"]
[327449398,1716078666414,-451.27679321,0.00028219,2]
[327449399,1716078666426,-500.0,0.00028219,2]
[327449400,1716078666438,-500.0,0.00028219,2]
[327449401,1716078666450,-2356.22,0.00028219,2]
[327449402,1716078666463,-500.0,0.00028219,2]
[327449403,1716078666475,-2440.20609874,0.00028249,2]
[327449404,1716078666487,-661.0,0.00028289,5]
[327449405,1716078666500,-5983.79489043,0.00028393,2]
[327449406,1716078666512,-176.36583905,0.00028393,2]
[327449407,1716078666524,-1000.0,0.00028446,2]
[327449408,1716078666536,-157.051909,0.00028448,10]
[327449409,1716078666547,-344.0,0.00028463,15]
[327449410,1716078666560,-344.0,0.00028473,15]
[327449411,1716078666571,-504.2,0.00028481,7]
[327449412,1716078666584,-344.0,0.00028483,15]
[327449413,1716078666597,-500.0,0.00028492,2]
[327449414,1716078666610,-500.0,0.00028492,2]
[327449415,1716078666624,-681.95,0.00028493,2]
[327449416,1716078666636,-417.80315672,0.00028493,2]
[327449417,1716078666651,-500.0,0.00028493,2]
[327449418,1716078666663,-464.13665067,0.00028493,2]
[327449419,1716078666675,-500.0,0.00028493,2]
[327449420,1716078666687,-500.0,0.00028493,2]
[327449421,1716078666699,-500.0,0.00028493,2]
[327449422,1716078666710,-500.0,0.00028493,2]
[327449423,1716078666723,-500.0,0.00028493,2]
[327449424,1716078666735,-641.35450241,0.00028493,2]
[327449425,1716078666748,-503.89076684,0.00028493,2]
[327449426,1716078666760,-500.0,0.00028493,2]
[327449427,1716078666772,-500.0,0.00028493,2]
[327449428,1716078666784,-500.0,0.00028493,2]
[327449429,1716078666797,-500.0,0.00028493,2]
[327449430,1716078666810,-500.0,0.00028493,2]
[327449431,1716078666822,-500.0,0.00028493,2]
[327449432,1716078666836,-500.0,0.00028493,2]
[327449433,1716078666846,-500.0,0.00028493,2]
[327449434,1716078666856,-500.0,0.00028493,2]
[327449435,1716078666866,-506.9783626,0.00028493,2]
[327449436,1716078666875,-505.93,0.00028493,2]
[327449437,1716078666884,-517.25,0.00028493,2]
[327449438,1716078666894,-500.0,0.00028493,2]
[327449439,1716078666903,-500.0,0.00028493,2]
[327449440,1716078666912,-500.0,0.00028493,2]
[327449441,1716078666921,-500.0,0.00028493,2]
[327449442,1716078666930,-500.0,0.00028493,2]
[327449443,1716078666939,-402.79411129,0.00028493,2]
[327449444,1716078666949,-500.0,0.00028493,2]
[327449445,1716078666958,-500.0,0.00028493,2]
[327449446,1716078666968,-500.0,0.00028493,2]
[327449447,1716078666977,-589.22158255,0.00028493,2]
[327449448,1716078666986,-500.0,0.00028493,2]
[327449449,1716078666996,-500.0,0.00028493,2]
[327449450,1716078667005,-500.0,0.00028493,2]
[327449451,1716078667014,-500.0,0.00028493,2]
[327449452,1716078667023,-500.0,0.00028493,2]
[327449453,1716078667032,-209.6029428,0.00028493,2]
[327449454,1716078667042,-500.0,0.00028493,2]
[327449455,1716078667051,-500.0,0.00028493,2]
[327449456,1716078667062,-500.0,0.00028493,2]
[327449457,1716078667393,-500.0,0.00028493,2]
[327449458,1716078667408,-733.98,0.00028493,2]
[327449459,1716078667434,-500.0,0.00028493,2]
[327449460,1716078667454,-500.0,0.00028493,2]
[327449461,1716078667463,-500.0,0.00028493,2]
[327449462,1716078667472,-500.0,0.00028493,2]
[327449463,1716078667482,-500.0,0.00028493,2]
[327449464,1716078667491,-500.0,0.00028493,2]
[327449465,1716078667500,-722.95,0.00028493,2]
[327449466,1716078667510,-500.0,0.00028493,2]
[327449467,1716078667519,-1030.53,0.00028493,2]
[327449468,1716078667528,-502.13,0.00028493,2]
[327449469,1716078667537,-500.0,0.00028493,2]
[327449470,1716078667546,-500.0,0.00028493,2]
[327449471,1716078667555,-500.0,0.00028493,2]
[327449472,1716078667565,-500.0,0.00028493,2]
[327449473,1716078667574,-583.65,0.00028493,2]
[327449474,1716078667583,-1044.26,0.00028493,2]
[327449475,1716078667592,-648.82,0.00028493,2]
[327449476,1716078667601,-574.36,0.00028493,2]
[327449477,1716078667610,-537.0,0.00028493,2]
[327449478,1716078667619,-500.0,0.00028493,2]
[327449479,1716078667628,-500.0,0.00028493,2]
[327449480,1716078667637,-500.0,0.00028493,2]
[327449481,1716078667647,-500.0,0.00028493,2]
[327449482,1716078667655,-500.0,0.00028493,2]
[327449483,1716078667665,-505.89,0.00028493,2]
[327449484,1716078667674,-500.0,0.00028493,2]
[327449485,1716078667683,-500.0,0.00028493,2]
[327449486,1716078667692,-737.65,0.00028493,2]
[327449487,1716078667703,-500.0,0.00028493,2]
[327449488,1716078667711,-500.0,0.00028493,2]
[327449489,1716078667721,-500.0,0.00028493,2]
[327449490,1716078667730,-500.0,0.00028493,2]
[327449491,1716078667740,-500.0,0.00028493,2]
[327449492,1716078667749,-500.0,0.00028493,2]
[327449493,1716078667760,-500.0,0.00028493,2]
[327449494,1716078667769,-577.98,0.00028493,2]
[327449495,1716078667778,-500.0,0.00028493,2]
[327449496,1716078667788,-500.0,0.00028493,2]
[327449497,1716078667797,-500.0,0.00028493,2]
[327449498,1716078667806,-531.85,0.00028493,2]
[327449499,1716078667816,-500.0,0.00028493,2]
[327449500,1716078667826,-500.0,0.00028493,2]
[327449501,1716078667836,-577.05567336,0.00028493,2]
[327449502,1716078667845,-518.77,0.00028493,2]
[327449503,1716078667855,-630.47,0.00028493,2]
[327449504,1716078667864,-921.62,0.00028493,2]
[327449505,1716078667873,-598.64,0.00028493,2]
[327449506,1716078667883,-597.35,0.00028493,2]
[327449507,1716078667893,-500.0,0.00028493,2]
[327449508,1716078667902,-678.99,0.00028493,2]
[327449509,1716078667912,-500.0,0.00028493,2]
[327449510,1716078667923,-500.0,0.00028493,2]
[327449511,1716078667932,-1138.39,0.00028493,2]
[327449512,1716078667942,-596.25,0.00028493,2]
[327449513,1716078667952,-500.0,0.00028493,2]
[327449514,1716078667961,-500.0,0.00028493,2]
[327449515,1716078667971,-500.0,0.00028493,2]
[327449516,1716078667980,-827.83,0.00028493,2]
[327449517,1716078667989,-500.0,0.00028493,2]
[327449518,1716078667999,-890.31,0.00028493,2]
[327449519,1716078668009,-1011.91,0.00028493,2]
[327449520,1716078668018,-500.0,0.00028493,2]
[327449521,1716078668027,-500.0,0.00028493,2]
[327449522,1716078668036,-655.15,0.00028493,2]
[327449523,1716078668047,-500.0,0.00028493,2]
[327449524,1716078668056,-500.0,0.00028493,2]
[327449525,1716078668066,-672.45,0.00028493,2]
[327449526,1716078668075,-500.0,0.00028493,2]
[327449527,1716078668085,-500.0,0.00028493,2]
[327449528,1716078668095,-511.34135461,0.00028493,2]
[327449529,1716078668105,-500.0,0.00028493,2]
[327449530,1716078668114,-500.0,0.00028493,2]
[327449531,1716078668123,-500.0,0.00028493,2]
[327449532,1716078668133,-504.05,0.00028493,2]
[327449533,1716078668142,-689.56,0.00028493,2]
[327449534,1716078668152,-500.0,0.00028493,2]
[327449535,1716078668161,-611.06,0.00028493,2]
[327449536,1716078668171,-500.0,0.00028493,2]
[327449537,1716078668180,-500.0,0.00028493,2]
[327449538,1716078668190,-633.75,0.00028493,2]
[327449539,1716078668201,-500.0,0.00028493,2]
[327449540,1716078668210,-900.3,0.00028493,2]
[327449541,1716078668219,-500.0,0.00028493,2]
[327449542,1716078668229,-500.0,0.00028493,2]
[327449543,1716078668239,-523.89,0.00028493,2]
[327449544,1716078668250,-534.55,0.00028493,2]
[327449545,1716078668260,-569.19,0.00028493,2]
[327449546,1716078668269,-500.0,0.00028493,2]
[327449547,1716078668281,-500.0,0.00028493,2]
[327449548,1716078668290,-500.0,0.00028493,2]
[327449549,1716078668300,-500.0,0.00028493,2]
[327449550,1716078668309,-500.0,0.00028493,2]
[327449551,1716078668320,-1239.6,0.00028493,2]
[327449552,1716078668329,-500.0,0.00028493,2]
[327449553,1716078668339,-637.24,0.00028493,2]
[327449554,1716078668349,-748.98,0.00028493,2]
[327449555,1716078668358,-500.0,0.00028493,2]
[327449556,1716078668367,-500.0,0.00028493,2]
[327449557,1716078668376,-527.94,0.00028493,2]
[327449558,1716078668386,-832.73,0.00028493,2]
[327449559,1716078668395,-500.0,0.00028493,2]
[327449560,1716078668404,-551.34,0.00028493,2]
[327449561,1716078668414,-500.0,0.00028493,2]
[327449562,1716078668423,-500.0,0.00028493,2]
[327449563,1716078668432,-500.0,0.00028493,2]
[327449564,1716078668442,-500.0,0.00028493,2]
[327449565,1716078668453,-500.0,0.00028493,2]
[327449566,1716078668463,-500.0,0.00028493,2]
[327449567,1716078668472,-500.0,0.00028493,2]
[327449568,1716078668481,-876.87,0.00028493,2]
[327449569,1716078668490,-277.69,0.00028493,2]
[327449570,1716078668500,-500.0,0.00028493,2]
[327449571,1716078668509,-812.13,0.00028493,2]
[327449572,1716078668519,-500.0,0.00028493,2]
[327449573,1716078668529,-648.2,0.00028493,2]
[327449574,1716078668539,-500.0,0.00028493,2]
[327449575,1716078668548,-1583.82,0.00028493,2]
[327449576,1716078668558,-500.0,0.00028493,2]
[327449577,1716078668567,-1475.35,0.00028493,2]
[327449578,1716078668577,-895.82,0.00028493,2]
[327449579,1716078668587,-500.0,0.00028493,2]
[327449580,1716078668596,-670.03,0.00028493,2]
[327449581,1716078668605,-882.87,0.00028493,2]
[327449582,1716078668615,-500.0,0.00028493,2]
[327449583,1716078668624,-500.0,0.00028493,2]
[327449584,1716078668634,-500.0,0.00028493,2]
[327449585,1716078668643,-580.61,0.00028493,2]
[327449586,1716078668653,-545.97,0.00028493,2]
[327449587,1716078668662,-500.0,0.00028493,2]
[327449588,1716078668671,-500.0,0.00028493,2]
[327449589,1716078668680,-500.0,0.00028493,2]
[327449590,1716078668690,-500.0,0.00028493,2]
[327449591,1716078668699,-500.0,0.00028493,2]
[327449592,1716078668708,-529.56,0.00028493,2]
[327449593,1716078668718,-500.0,0.00028493,2]
[327449594,1716078668728,-500.0,0.00028493,2]
[327449595,1716078668738,-2239.3,0.00028493,2]
[327449596,1716078668747,-500.0,0.00028493,2]
[327449597,1716078668757,-619.46,0.00028493,2]
[327449598,1716078668766,-823.42,0.00028493,2]
[327449599,1716078668775,-500.0,0.00028493,2]
[327449600,1716078668784,-500.0,0.00028493,2]
[327449601,1716078668793,-500.0,0.00028493,2]
[327449602,1716078668802,-899.65,0.00028493,2]
[327449603,1716078668812,-541.86,0.00028493,2]
[327449604,1716078668821,-716.2,0.00028493,2]
[327449605,1716078668830,-621.68,0.00028493,2]
[327449606,1716078668839,-669.33,0.00028493,2]
[327449607,1716078668849,-1398.84,0.00028493,2]
[327449608,1716078668858,-557.15,0.00028493,2]
[327449609,1716078668867,-500.0,0.00028493,2]
[327449610,1716078668876,-500.0,0.00028493,2]
[327449611,1716078668885,-735.95,0.00028493,2]
[327449612,1716078668894,-500.0,0.00028493,2]
[327449613,1716078668904,-669.0,0.00028493,2]
[327449614,1716078668914,-753.99,0.00028493,2]
[327449615,1716078668923,-1923.63,0.00028493,2]
[327449616,1716078668933,-884.1,0.00028493,2]
[327449617,1716078668943,-500.0,0.00028493,2]
[327449618,1716078668952,-500.0,0.00028493,2]
[327449619,1716078668962,-656.37,0.00028493,2]
[327449620,1716078668971,-635.92,0.00028493,2]
[327449621,1716078668981,-500.0,0.00028493,2]
[327449622,1716078668990,-928.15,0.00028493,2]
[327449623,1716078668999,-500.0,0.00028493,2]
[327449624,1716078669008,-500.0,0.00028493,2]
[327449625,1716078669017,-806.75,0.00028493,2]
[327449626,1716078669027,-685.35,0.00028493,2]
[327449627,1716078669036,-648.92,0.00028493,2]
[327449628,1716078669046,-500.0,0.00028493,2]
[327449629,1716078669055,-500.0,0.00028493,2]
[327449630,1716078669065,-500.0,0.00028493,2]
[327449631,1716078669074,-568.25677995,0.00028493,2]
[327449632,1716078669084,-813.03,0.00028493,2]
[327449633,1716078669094,-614.14,0.00028493,2]
[327449634,1716078669103,-791.44,0.00028493,2]
[327449635,1716078669113,-500.0,0.00028493,2]
[327449636,1716078669122,-500.0,0.00028493,2]
[327449637,1716078669131,-446.17,0.00028493,2]
[327449638,1716078669141,-1036.27,0.00028493,2]
[327449639,1716078669151,-693.8,0.00028493,2]
[327449640,1716078669160,-500.0,0.00028493,2]
[327449641,1716078669170,-1117.96,0.00028493,2]
[327449642,1716078669180,-774.17,0.00028493,2]
[327449643,1716078669189,-500.0,0.00028493,2]
[327449644,1716078669199,-500.0,0.00028493,2]
[327449645,1716078669208,-500.0,0.00028493,2]
[327449646,1716078669217,-500.0,0.00028493,2]
[327449647,1716078669227,-538.21,0.00028493,2]
[327449648,1716078669236,-500.0,0.00028493,2]
[327449649,1716078669245,-554.73,0.00028493,2]
[327449650,1716078669254,-762.69,0.00028493,2]
[327449651,1716078669263,-500.0,0.00028493,2]
[327449652,1716078669274,-500.0,0.00028493,2]
[327449653,1716078669287,-428.74706944,0.00028493,2]
[327449654,1716078669297,-500.0,0.00028493,2]
[327449655,1716078669306,-150.0,0.00028493,2]
[327449656,1716078669316,-500.0,0.00028493,2]
[327449657,1716078669325,-1681.9,0.00028493,2]
[327449658,1716078669335,-1315.61,0.00028493,2]
[327449659,1716078669344,-518.65,0.00028493,2]
[327449660,1716078669354,-1008.21,0.00028493,2]
[327449661,1716078669365,-578.45,0.00028493,2]
[327449662,1716078669375,-500.0,0.00028493,2]
[327449663,1716078669385,-500.0,0.00028493,2]
[327449664,1716078669394,-665.8,0.00028493,2]
[327449665,1716078669404,-500.0,0.00028493,2]
[327449666,1716078669413,-512.39,0.00028493,2]
[327449667,1716078669423,-1367.82,0.00028493,2]
[327449668,1716078669433,-500.0,0.00028493,2]
[327449669,1716078669442,-966.33,0.00028493,2]
[327449670,1716078669452,-911.7,0.00028493,2]
[327449671,1716078669462,-957.33,0.00028493,2]
[327449672,1716078669471,-535.78619795,0.00028493,2]
[327449673,1716078669481,-1131.82,0.00028493,2]
[327449674,1716078669490,-500.0,0.00028493,2]
[327449675,1716078669499,-1166.35,0.00028493,2]
[327449676,1716078669509,-500.0,0.00028493,2]
[327449677,1716078669518,-500.0,0.00028493,2]
[327449678,1716078669528,-500.0,0.00028493,2]
[327449679,1716078669538,-862.14,0.00028493,2]
[327449680,1716078669547,-500.0,0.00028493,2]
[327449681,1716078669556,-960.69,0.00028493,2]
[327449682,1716078669566,-522.68,0.00028493,2]
[327449683,1716078669577,-654.36,0.00028493,2]
[327449684,1716078669587,-500.0,0.00028493,2]
[327449685,1716078669597,-500.0,0.00028493,2]
[327449686,1716078669606,-500.0,0.00028493,2]
[327449687,1716078669615,-500.0,0.00028493,2]
[327449688,1716078669624,-1298.17,0.00028493,2]
[327449689,1716078669634,-852.23,0.00028493,2]
[327449690,1716078669644,-500.0,0.00028493,2]
[327449691,1716078669652,-500.0,0.00028493,2]
[327449692,1716078669661,-641.81,0.00028493,2]
[327449693,1716078669670,-1049.32,0.00028493,2]
[327449694,1716078669679,-500.0,0.00028493,2]
[327449695,1716078669688,-559.84,0.00028493,2]
[327449696,1716078669697,-920.0,0.00028493,2]
[327449697,1716078669710,-500.0,0.00028493,2]
[327449698,1716078669719,-500.0,0.00028493,2]
[327449699,1716078669728,-500.0,0.00028493,2]
[327449700,1716078669737,-500.0,0.00028493,2]
[327449701,1716078669746,-500.0,0.00028493,2]
[327449702,1716078669755,-1059.88,0.00028493,2]
[327449703,1716078669765,-1239.43,0.00028493,2]
[327449704,1716078669775,-500.0,0.00028493,2]
[327449705,1716078669783,-930.82,0.00028493,2]
[327449706,1716078669792,-896.18,0.00028493,2]
[327449707,1716078669802,-1090.58,0.00028493,2]
[327449708,1716078669812,-500.0,0.00028493,2]
[327449709,1716078669821,-501.2,0.00028493,2]
[327449710,1716078669830,-3708.29,0.00028493,2]
[327449711,1716078669840,-756.03,0.00028493,2]
[327449712,1716078669849,-568.47,0.00028493,2]
[327449713,1716078669858,-634.45,0.00028493,2]
[327449714,1716078669867,-669.45,0.00028493,2]
[327449715,1716078669877,-640.29,0.00028493,2]
[327449716,1716078669886,-1188.88,0.00028493,2]
[327449717,1716078669896,-151.0,0.00028493,7]
[327449718,1716078669905,-1706.37,0.00028493,2]
[327449719,1716078669915,-151.0,0.00028493,7]
[327449720,1716078669924,-151.0,0.00028493,7]
[327449721,1716078669934,-501.03,0.00028493,2]
[327449722,1716078669943,-500.0,0.00028493,2]
[327449723,1716078669955,-604.36,0.00028493,2]
[327449724,1716078669964,-18503.15,0.00028493,2]
[327449725,1716078669973,-500.0,0.00028493,2]
[327449726,1716078669983,-526.23563046,0.00028493,2]
[327449727,1716078669992,-3042.71,0.00028493,2]
[327449728,1716078670001,-243.382886,0.00028493,7]
[327449729,1716078670011,-918.3,0.00028493,2]
[327449730,1716078670020,-673.49,0.00028493,2]
[327449731,1716078670030,-500.0,0.00028493,2]
[327449732,1716078670040,-1478.1,0.00028493,2]
[327449733,1716078670049,-151.0,0.00028493,7]
[327449734,1716078670059,-243.382886,0.00028493,7]
[327449735,1716078670069,-563.24,0.00028493,2]
[327449736,1716078670078,-1236.25,0.00028493,2]
[327449737,1716078670087,-6353.16,0.00028493,2]
[327449738,1716078670097,-500.0,0.00028493,2]
[327449739,1716078670106,-858.51,0.00028493,2]
[327449740,1716078670116,-500.0,0.00028493,2]
[327449741,1716078670125,-1637.74,0.00028493,2]
[327449742,1716078670135,-151.0,0.00028493,7]
[327449743,1716078670144,-2093.82,0.00028493,2]
[327449744,1716078670154,-1213.21,0.00028493,2]
[327449745,1716078670164,-1033.3,0.00028493,2]
[327449746,1716078670174,-837.96,0.00028493,2]
[327449747,1716078670183,-649.63,0.00028493,2]
[327449748,1716078670194,-6393.72,0.00028493,2]
[327449749,1716078670206,-1059.23,0.00028493,2]
[327449750,1716078670215,-1055.23,0.00028493,2]
[327449751,1716078670225,-1196.2,0.00028493,2]
[327449752,1716078670235,-13606.2,0.00028493,2]
[327449753,1716078670244,-9049.33,0.00028493,2]
[327449754,1716078670253,-892.42,0.00028493,2]
[327449755,1716078670263,-500.0,0.00028493,2]
[327449756,1716078670272,-1312.43,0.00028493,2]
[327449757,1716078670286,-686.8,0.00028493,2]
[327449758,1716078670295,-929.49,0.00028493,2]
[327449759,1716078670305,-500.0,0.00028493,2]
[327449760,1716078670314,-1939.3,0.00028493,2]
[327449761,1716078670323,-743.66,0.00028493,2]
[327449762,1716078670332,-500.0,0.00028493,2]
[327449763,1716078670341,-2013.02,0.00028493,2]
[327449764,1716078670351,-1030.41,0.00028493,2]
[327449765,1716078670360,-500.0,0.00028493,2]
[327449766,1716078670370,-348.7429118,0.00028493,2]
[327449767,1716078670379,-1781.24,0.00028493,2]
[327449768,1716078670388,-500.0,0.00028493,2]
[327449769,1716078670398,-784.58,0.00028493,2]
[327449770,1716078670408,-1095.5,0.00028493,2]
[327449771,1716078670417,-340.64,0.00028493,2]
[327449772,1716078670427,-500.0,0.00028493,2]
[327449773,1716078670436,-675.78,0.00028493,2]
[327449774,1716078670445,-151.0,0.00028493,7]
[327449775,1716078670456,-5578.21,0.00028493,2]
[327449776,1716078670465,-492.090068,0.00028493,7]
[327449777,1716078670474,-853.49,0.00028493,2]
[327449778,1716078670484,-1353.59,0.00028493,2]
[327449779,1716078670494,-4213.64,0.00028493,2]
[327449780,1716078670503,-492.090068,0.00028493,7]
[327449781,1716078670512,-151.0,0.00028493,7]
[327449782,1716078670522,-151.0,0.00028493,7]
[327449783,1716078670530,-613.16,0.00028493,2]
[327449784,1716078670540,-1183.02,0.00028493,2]
[327449785,1716078670549,-8319.89,0.00028493,2]
[327449786,1716078670558,-1523.68,0.00028493,2]
[327449787,1716078670567,-11263.28,0.00028493,2]
[327449788,1716078670576,-500.0,0.00028493,2]
[327449789,1716078670585,-687.5,0.00028493,2]
[327449790,1716078670760,-988.22,0.00028493,2]
[327449791,1716078670777,-500.0,0.00028493,2]
[327449792,1716078670787,-2530.3,0.00028493,2]
[327449793,1716078670796,-878.41,0.00028493,2]
[327449794,1716078670806,-11394.4,0.00028493,2]
[327449795,1716078670815,-1672.62,0.00028493,2]
[327449796,1716078670824,-500.0,0.00028493,2]
[327449797,1716078670834,-1326.615315,0.00028493,7]
[327449798,1716078670843,-803.29,0.00028493,2]
[327449799,1716078670852,-151.0,0.00028493,7]
[327449800,1716078670861,-1326.615315,0.00028493,7]
[327449801,1716078670871,-1311.7,0.00028493,2]
[327449802,1716078670881,-7614.15,0.00028493,2]
[327449803,1716078670890,-1307.43,0.00028493,2]
[327449804,1716078670899,-500.0,0.00028493,2]
[327449805,1716078670909,-1045.39,0.00028493,2]
[327449806,1716078670918,-3075.12,0.00028493,2]
[327449807,1716078670927,-652.54,0.00028493,2]
[327449808,1716078670937,-151.0,0.00028493,7]
[327449809,1716078670946,-863.6,0.00028493,2]
[327449810,1716078670956,-500.0,0.00028493,2]
[327449811,1716078670966,-500.0,0.00028493,2]
[327449812,1716078670976,-151.0,0.00028493,7]
[327449813,1716078670985,-500.0,0.00028493,2]
[327449814,1716078670994,-151.0,0.00028493,7]
[327449815,1716078671004,-1831.66,0.00028493,2]
[327449816,1716078671014,-1329.27,0.00028493,2]
[327449817,1716078671023,-675.65,0.00028493,2]
[327449818,1716078671033,-12287.87,0.00028493,2]
[327449819,1716078671043,-1113.15,0.00028493,2]
[327449820,1716078671052,-500.0,0.00028493,2]
[327449821,1716078671062,-2444.57,0.00028493,2]
[327449822,1716078671071,-2423.7,0.00028493,2]
[327449823,1716078671080,-690.97,0.00028493,2]
[327449824,1716078671090,-151.0,0.00028493,7]
[327449825,1716078671099,-782.51,0.00028493,2]
[327449826,1716078671108,-500.0,0.00028493,2]
[327449827,1716078671118,-151.0,0.00028493,7]
[327449828,1716078671127,-151.0,0.00028493,7]
[327449829,1716078671136,-2076.59,0.00028493,2]
[327449830,1716078671146,-14693.09,0.00028493,2]
[327449831,1716078671156,-500.0,0.00028493,2]
[327449832,1716078671165,-2483.23,0.00028493,2]
[327449833,1716078671175,-634.11,0.00028493,2]
[327449834,1716078671184,-1053.73,0.00028493,2]
[327449835,1716078671193,-151.0,0.00028493,7]
[327449836,1716078671203,-1080.2,0.00028493,2]
[327449837,1716078671211,-500.0,0.00028493,2]
[327449838,1716078671221,-151.0,0.00028493,7]
[327449839,1716078671231,-4673.28,0.00028493,2]
[327449840,1716078671241,-500.0,0.00028493,2]
[327449841,1716078671251,-500.0,0.00028493,2]
[327449842,1716078671260,-1437.6,0.00028493,2]
[327449843,1716078671269,-500.0,0.00028493,2]
[327449844,1716078671281,-1159.59,0.00028493,2]
[327449845,1716078671291,-151.0,0.00028493,7]
[327449846,1716078671300,-151.0,0.00028493,7]
[327449847,1716078671309,-500.0,0.00028493,2]
[327449848,1716078671320,-151.0,0.00028493,7]
[327449849,1716078671329,-627.84,0.00028493,2]
[327449850,1716078671338,-880.42,0.00028493,2]
[327449851,1716078671348,-1488.28,0.00028493,2]
[327449852,1716078671360,-1630.92,0.00028493,2]
[327449853,1716078671369,-500.0,0.00028493,2]
[327449854,1716078671379,-9733.43,0.00028493,2]
[327449855,1716078671388,-880.17,0.00028493,2]
[327449856,1716078671397,-2962.83,0.00028493,2]
[327449857,1716078671407,-151.0,0.00028493,7]
[327449858,1716078671415,-500.0,0.00028493,2]
[327449859,1716078671425,-349.286604,0.00028493,7]
[327449860,1716078671434,-500.0,0.00028493,2]
[327449861,1716078671445,-716.13,0.00028493,2]
[327449862,1716078671455,-768.84,0.00028493,2]
[327449863,1716078671465,-349.286604,0.00028493,7]
[327449864,1716078671474,-151.0,0.00028493,7]
[327449865,1716078671483,-1840.17,0.00028493,2]
[327449866,1716078671494,-986.7,0.00028493,2]
[327449867,1716078671505,-500.0,0.00028493,2]
[327449868,1716078671517,-1662.73,0.00028493,2]
[327449869,1716078671527,-4303.61,0.00028493,2]
[327449870,1716078671538,-151.0,0.00028493,7]
[327449871,1716078671549,-631.36,0.00028493,2]
[327449872,1716078671559,-724.28,0.00028493,2]
[327449873,1716078671569,-3000.96,0.00028493,2]
[327449874,1716078671578,-151.0,0.00028493,7]
[327449875,1716078671588,-152.508439,0.00028493,7]
[327449876,1716078671599,-613.97,0.00028493,2]
[327449877,1716078671608,-504.46,0.00028493,2]
[327449878,1716078671618,-525.96,0.00028493,2]
[327449879,1716078671627,-151.0,0.00028493,7]
[327449880,1716078671636,-285.600972,0.00028493,7]
[327449881,1716078671646,-500.0,0.00028493,2]
[327449882,1716078671655,-3050.31,0.00028493,2]
[327449883,1716078671664,-153.52941,0.00028493,7]
[327449884,1716078671673,-2206.8,0.00028493,2]
[327449885,1716078671682,-3296.43,0.00028493,2]
[327449886,1716078671691,-3601.59,0.00028493,2]
[327449887,1716078671700,-285.600972,0.00028493,7]
[327449888,1716078671710,-3041.56,0.00028493,2]
[327449889,1716078671719,-151.0,0.00028493,7]
[327449890,1716078671728,-523.16,0.00028493,2]
[327449891,1716078671737,-2275.09,0.00028493,2]
[327449892,1716078671746,-500.0,0.00028493,2]
[327449893,1716078671756,-750.61,0.00028493,2]
[327449894,1716078671765,-3685.01,0.00028493,2]
[327449895,1716078671775,-1919.05,0.00028493,2]
[327449896,1716078671784,-1219.88,0.00028493,2]
[327449897,1716078671794,-1988.81,0.00028493,2]